[Event "FIDE WCCC U10 2018"]
[Site "Santiago de Compostela"]
[Date "2018.11.07"]
[Round "3"]
[White "Materia, Marco"]
[Black "Pham, Tran Gia Phuc"]
[Result "1-0"]
[ECO "B22"]
[WhiteElo "2035"]
[BlackElo "1736"]
[Annotator "NA RC"]
[PlyCount "107"]
[EventDate "2018.11.04"]
[EventType "swiss"]
[EventCountry "ESP"]
[SourceTitle "playchess.com"]
[Source "ChessBase"]
[SourceQuality "1"]
[TimeControl "40/5400+30:1800+30"]

{[%evp 8,106,14,2,32767,12,6,16,35,13,25,32767,45,25,83,71,76,92,100,81,80,91,81,62,100,60,60,0,123,135,156,92,82,103,106,32,40,29,207,47,174,101,114,32767,32767,209,316,201,729,75,66,32767,277,283,254,288,281,341,235,238,240,163,333,350,529,32767,355,320,414,418,32767,429,32767,32767,32767,32767,32767,489,424,32767,32767,32767,32767,32767,555,32767,32767,32767,958,12837,729,997,6474,4818,12842,4845,12843,4802,32767,1663,4827]} 1. e4 {[%emt 0:00:00]} c5 {[%emt 0:00:00]} 2. c3 {[%emt 0:00:00]} Nf6 {[%emt 0:00:12]} 3. e5 {[%emt 0:00:00]} Nd5 {[%emt 0:00:36]} 4. d4 {[%emt 0:00:00]} cxd4 {[%emt 0:00:45]} 5. Nf3 {[%emt 0:00:09]} e6 {[%emt 0:00:28]} 6. cxd4 {[%emt 0:00:20]} d6 {[%emt 0:00:29]} 7. Bc4 {[%emt 0:00:05]} Nb6 {[%emt 0:00:33]} 8. Bb3 {[%emt 0:00:26]} dxe5 {[%emt 0:00:31] LiveBook: 217 Games} 9. Nxe5 {[%emt 0:00:14]} Be7 {[%emt 0:03:42] B22: Sicilian: 2 c3} (9... Nc6 10. Qf3 Bb4+ 11. Nc3 O-O 12. Nxc6 bxc6 13. O-O Qxd4 14. Rd1 Qh4 15. Ne4 e5 16. Bg5 Qg4 17. a3 Qxf3 18. gxf3 {0-1 (32) Mamedov,R (2709)-Harikrishna,P (2744) Huaian 2017}) 10. O-O {[%emt 0:01:47]} N8d7 {[%emt 0:01:04]} 11. Qg4 $146 {[%emt 0:09:35]} ({Predecessor:} 11. Nc3 Nf6 12. Bf4 O-O 13. Rc1 Nbd5 14. Bg3 a6 15. Qe2 Nxc3 16. bxc3 {½-½ (60) Terao,J (2228)-Bruno,F (2425) Forni di Sopra 2016}) 11... O-O {[%emt 0:12:01]} 12. Bh6 {[%emt 0:05:25]} Bf6 {[%emt 0:00:19]} 13. Re1 {[%emt 0:01:59]} Kh8 {[%emt 0:06:05]} 14. Bc1 {[%emt 0:07:02]} Nd5 {[%emt 0:17:12]} 15. Nd2 {[%emt 0:06:49]} N7b6 {[%emt 0:26:09]} 16. Ndf3 {[%emt 0:05:13]} Bd7 {[%emt 0:02:16]} 17. Bd2 {[%emt 0:03:32]} ({White should play} 17. a4 $16) 17... a5 {[%emt 0:03:13] [#]} (17... Ba4 $11 {keeps the balance.}) 18. Bc2 $1 {[%emt 0:05:36]} g6 {[%emt 0:05:54]} 19. Rad1 {[%emt 0:04:22]} Rc8 {[%emt 0:02:06]} 20. Bb1 {[%emt 0:01:03]} Nc4 {[%emt 0:01:13]} 21. Bc1 {[%emt 0:03:01]} Nd6 {[%emt 0:07:35]} 22. h4 {[%emt 0:02:26]} h5 $2 {[%emt 0:06:11] [#]} (22... Be8 $11 {and Black is okay.}) 23. Qh3 $2 {[%emt 0:03:40]} (23. Nxg6+ $1 $18 {[%mdl 512]} fxg6 24. Qxg6) 23... Nf5 {[%emt 0:01:34]} (23... Kg7 $14) 24. g4 {[%emt 0:00:52]} (24. Bxf5 $142 $1 exf5 25. Bh6) 24... hxg4 {[%emt 0:01:07]} 25. Qxg4 {[%emt 0:00:24]} Ng7 {[%emt 0:00:35]} 26. Bh6 {[%emt 0:03:10]} Qe7 {[%emt 0:00:36]} 27. h5 {[%emt 0:01:27]} Nxh5 $2 {[%emt 0:00:31]} (27... g5 28. Qe4 (28. Nxg5 Bxe5 29. dxe5 Rg8 $18) (28. Nxd7 Qxd7 29. Qe4 Nf5 $18) 28... Nf5) 28. Bxf8 $2 {[%emt 0:00:41]} (28. Bxg6 $18 Ndf4 29. Bxf4 Nxf4 30. Qxf4) 28... Rxf8 {[%emt 0:00:07]} 29. Bxg6 {[%emt 0:00:13]} Ndf4 $2 {[%emt 0:00:43]} (29... Nhf4 $14 30. Nxd7 Qxd7) 30. Bxh5 {[%emt 0:01:26]} Rg8 {[%emt 0:00:21]} 31. Bg6 $1 {[%emt 0:00:23]} ({And not} 31. Nxf7+ Qxf7 32. Bxf7 Rxg4+ 33. Kh2 Bc6 $17) 31... Nxg6 {[%emt 0:00:45]} 32. Qh5+ {[%emt 0:00:19]} Kg7 {[%emt 0:00:11] [#]} 33. Nxg6 $1 {[%emt 0:01:03]} fxg6 {[%emt 0:00:10]} 34. Qc5 {[%emt 0:00:33]} Qd8 $2 {[%emt 0:01:13]} (34... Qxc5 35. dxc5 Bc6) 35. d5 {[%emt 0:00:29]} exd5 {[%emt 0:00:31]} (35... b6 $142 36. Qe3 (36. dxe6 bxc5 37. Rxd7+ Qxd7 $16) 36... exd5 37. Rxd5 Qc7) 36. Qxd5 {[%emt 0:00:22]} Bc6 {[%emt 0:00:25]} 37. Qxd8 {[%emt 0:00:17]} Rxd8 {[%emt 0:00:14]} 38. Rxd8 {[%emt 0:00:06]} Bxd8 {[%emt 0:00:43]} 39. Nd4 {[%emt 0:00:09]} Bd5 {[%emt 0:00:32]} 40. Ne6+ {[%emt 0:00:00]} Bxe6 {[%emt 0:00:00]} 41. Rxe6 {[%emt 0:00:15]} b5 {[%emt 0:02:47]} 42. Re5 {[%emt 0:00:22]} b4 {[%emt 0:00:30]} 43. Rd5 {[%emt 0:00:39]} Bb6 {[%emt 0:00:12]} 44. Rd6 {[%emt 0:00:10]} Bc5 {[%emt 0:01:15]} 45. Ra6 {[%emt 0:00:07]} Bd4 {[%emt 0:01:08]} 46. b3 {[%emt 0:00:10]} Bb2 {[%emt 0:01:25]} 47. Kg2 {[%emt 0:00:08]} Kh6 {[%emt 0:00:36]} 48. Rxa5 {[%emt 0:00:06]} g5 {[%emt 0:01:39]} 49. Kg3 {[%emt 0:00:22]} Bc1 {[%emt 0:01:06]} 50. Kg4 {[%emt 0:00:08]} Kg6 {[%emt 0:00:34]} 51. Rb5 {[%emt 0:00:24]} Bd2 {[%emt 0:00:10]} 52. Rd5 {[%emt 0:00:11]} Bc3 {[%emt 0:02:11]} 53. Rxg5+ $18 {[%emt 0:00:07]} (53. Rd6+ $142 Bf6 54. Rb6) 53... Kf6 {[%emt 0:00:07]} 54. Rb5 {[%emt 0:00:09]} 1-0

[Event "FIDE WCCC U10 2018"]
[Site "Santiago de Compostela"]
[Date "2018.11.07"]
[Round "3"]
[White "Xue, Haowen"]
[Black "Cohen, Elad"]
[Result "1-0"]
[ECO "A40"]
[WhiteElo "2025"]
[BlackElo "1649"]
[Annotator "NA RC"]
[PlyCount "123"]
[EventDate "2018.11.04"]
[EventType "swiss"]
[EventCountry "ESP"]
[SourceTitle "playchess.com"]
[Source "ChessBase"]
[SourceQuality "1"]
[TimeControl "40/5400+30:1800+30"]

{[%evp 8,123,23,18,32767,32767,32767,24,50,-27,-11,-31,4,-33,-22,-20,-6,-66,-76,-50,8,0,6,0,8,0,15,0,21,17,7,6,7,0,19,6,6,0,2,0,13,14,43,32,93,88,89,80,81,93,140,153,169,149,173,150,196,226,236,268,241,154,32767,32767,227,148,233,145,140,32767,166,148,170,32767,32767,32767,32767,278,32767,32767,32767,368,439,427,463,524,32767,322,237,616,487,710,508,970,720,1293,1543,1696,2202,2272,949,1218,5093,4825,12839,29979,12798,2162,29989,29990,29991,29992,29982,29987,12847,29988,29989,29990]} 1. d4 {[%emt 0:00:00]} Nf6 {[%emt 0:00:00]} 2. c4 {[%emt 0:00:00]} e6 {[%emt 0:00:00]} 3. g3 {[%emt 0:00:11]} Bb4+ {[%emt 0:00:00]} 4. Bd2 {[%emt 0:00:14]} Qe7 {[%emt 0:00:19]} 5. Bg2 {[%emt 0:00:44]} Nc6 {[%emt 0:00:40]} 6. e3 {[%emt 0:00:35]} Bxd2+ {[%emt 0:00:37]} 7. Qxd2 {[%emt 0:00:51]} d5 {[%emt 0:01:20] LiveBook: 9 Games E00: Katalanisch} 8. Nc3 {[%emt 0:05:42]} (8. Ne2 $14) (8. Nf3 dxc4 9. O-O e5 10. Nxe5 Nxe5 11. dxe5 Qxe5 12. Na3 Be6 13. Rac1 Ne4 14. Qd4 Qxd4 15. exd4 {½-½ (52) Goryachkina,A (2493)-Ivanchuk,V (2726) Caleta 2018}) 8... dxc4 {[%emt 0:00:50]} 9. Nf3 {[%emt 0:01:22]} O-O {[%emt 0:01:56]} 10. O-O {[%emt 0:02:10]} e5 {[%emt 0:01:24]} 11. dxe5 {[%emt 0:11:56]} Nxe5 {[%emt 0:07:37]} 12. Qd4 $146 {[%emt 0:04:59]} ({Vorgänger:} 12. Nxe5 Qxe5 13. Qe2 Qc5 14. Rfc1 {½-½ (42) Schmid,R (2249)-Meins,G (2443) Verden an der Aller 2014}) 12... Nxf3+ $1 {[%emt 0:07:20]} 13. Bxf3 {[%emt 0:00:13]} c6 {[%emt 0:03:02]} (13... Be6 $15) 14. Qxc4 {[%emt 0:02:19]} Be6 {[%emt 0:00:57]} 15. Qf4 {[%emt 0:00:41]} Rfd8 {[%emt 0:02:10]} 16. Rfd1 {[%emt 0:01:57]} h6 {[%emt 0:02:15]} 17. h4 {[%emt 0:03:06]} Rxd1+ {[%emt 0:08:46]} 18. Rxd1 {[%emt 0:01:40]} Rd8 {[%emt 0:00:15]} 19. Rd4 {[%emt 0:03:05]} Rxd4 {[%emt 0:10:03]} 20. Qxd4 {[%emt 0:03:02]} a6 {[%emt 0:01:06]} 21. Kf1 {[%emt 0:02:56]} Qd7 {[%emt 0:02:48]} 22. Qxd7 {[%emt 0:01:31]} Nxd7 {[%emt 0:02:08]} 23. Ke1 {[%emt 0:02:51]} Ne5 {[%emt 0:01:10]} 24. Be2 {[%emt 0:00:17]} Bc4 {[%emt 0:12:47]} 25. f4 {[%emt 0:05:36]} Nd3+ {[%emt 0:02:56]} (25... Bxe2 $11 26. Kxe2 Nd7) 26. Bxd3 $1 {[%emt 0:00:13]} Bxd3 {[%emt 0:00:06]} 27. Kd2 {[%emt 0:01:47]} Bf5 {[%emt 0:03:17]} 28. e4 {[%emt 0:02:14]} Bc8 {[%emt 0:02:34]} 29. Ke3 {[%emt 0:01:07]} Kf8 {[%emt 0:00:57]} 30. Kd4 {[%emt 0:00:22]} b6 {[%emt 0:06:23]} 31. Na4 {[%emt 0:04:47]} b5 {[%emt 0:00:35]} 32. Nc3 {[%emt 0:00:26]} Ke7 {[%emt 0:00:21]} 33. Kc5 {[%emt 0:00:24]} Kd7 {[%emt 0:00:29]} 34. Kb6 {[%emt 0:03:52]} (34. Ne2 $18) 34... f6 {[%emt 0:01:37]} 35. b4 {[%emt 0:01:28]} Kd6 {[%emt 0:00:55]} 36. a4 {[%emt 0:01:10]} Bh3 {[%emt 0:04:01]} (36... bxa4 $16 {was worth a try.} 37. Nxa4 Bh3) 37. Kxa6 {[%emt 0:04:25]} (37. a5 $18) 37... bxa4 {[%emt 0:01:24]} 38. Nxa4 {[%emt 0:00:14]} Kc7 {[%emt 0:02:25]} 39. Ka5 {[%emt 0:00:20]} g5 {[%emt 0:00:57]} 40. Nc5 {[%emt 0:00:00]} gxh4 {[%emt 0:00:00]} 41. gxh4 {[%emt 0:00:56]} Bg4 {[%emt 0:08:08]} 42. Ka4 {[%emt 0:01:02]} Kb6 {[%emt 0:02:22]} 43. Kb3 {[%emt 0:01:02]} Kc7 {[%emt 0:03:02]} 44. Kc4 {[%emt 0:00:58]} Kd6 {[%emt 0:00:21]} 45. Kd4 {[%emt 0:00:25]} Be2 {[%emt 0:01:10]} 46. Ke3 {[%emt 0:01:09]} Bg4 {[%emt 0:01:44]} 47. Nd3 {[%emt 0:01:35]} Bh5 {[%emt 0:02:13]} 48. f5 {[%emt 0:00:44]} Bf7 {[%emt 0:02:11]} 49. Kf4 {[%emt 0:00:56]} Bc4 {[%emt 0:02:05]} 50. e5+ {[%emt 0:00:51]} Ke7 {[%emt 0:07:25]} 51. exf6+ {[%emt 0:01:08]} Kxf6 {[%emt 0:00:07]} 52. Ne5 {[%emt 0:00:08]} Bd5 {[%emt 0:02:58]} 53. Ng4+ {[%emt 0:00:31]} Kg7 {[%emt 0:00:08]} 54. Ke5 {[%emt 0:00:20]} Bf3 {[%emt 0:00:58]} 55. f6+ {[%emt 0:01:13]} Kh7 {[%emt 0:00:45]} 56. f7 {[%emt 0:00:19]} Kg7 {[%emt 0:00:04] [#]} 57. Nxh6 $1 {[%emt 0:00:05]} Bd5 {[%emt 0:01:51] [#]} 58. b5 $1 {[%emt 0:05:12]} Bf3 {[%emt 0:01:07]} 59. b6 {[%emt 0:01:17]} c5 {[%emt 0:00:14]} 60. Nf5+ {[%emt 0:02:01]} Kxf7 {[%emt 0:00:10]} 61. Nd6+ {[%emt 0:00:10]} Kg6 {[%emt 0:00:52]} 62. Ne4 {[%emt 0:00:08]} 1-0

[Event "FIDE WCCC U10 2018"]
[Site "Santiago de Compostela"]
[Date "2018.11.07"]
[Round "3"]
[White "Mardov, Dimitar"]
[Black "Silva, Daniel Frederico V"]
[Result "1/2-1/2"]
[ECO "C50"]
[WhiteElo "1985"]
[BlackElo "1693"]
[Annotator "NA RC"]
[PlyCount "58"]
[EventDate "2018.11.04"]
[EventType "swiss"]
[EventCountry "ESP"]
[SourceTitle "playchess.com"]
[Source "ChessBase"]
[SourceQuality "1"]
[TimeControl "40/5400+30:1800+30"]

{[%evp 10,57,21,25,10,14,21,19,32,0,16,32767,32767,32767,32767,32767,32767,32767,-8,-7,0,-16,-12,-27,33,32767,32767,32767,32767,32767,32767,32767,32767,32767,32767,32767,21,-5,22,-54,-40,-41,-62,-44,0,0,0,-470,-484,-471]} 1. e4 {[%emt 0:00:00]} e5 {[%emt 0:00:41]} 2. Nf3 {[%emt 0:00:00]} Nc6 {[%emt 0:00:45]} 3. Bc4 {[%emt 0:00:00]} Bc5 {[%emt 0:01:34]} 4. O-O {[%emt 0:00:00]} Nf6 {[%emt 0:02:02]} 5. d3 {[%emt 0:00:04]} O-O {[%emt 0:01:32]} 6. h3 {[%emt 0:00:40] C50: Italienische Partie} h6 {[%emt 0:03:46]} 7. Re1 {[%emt 0:02:29]} Re8 {[%emt 0:03:08]} 8. c3 {[%emt 0:02:12]} d6 {[%emt 0:07:21]} 9. Bb3 {[%emt 0:02:03]} a6 {[%emt 0:04:21] LiveBook: 80 Games} 10. Nbd2 {[%emt 0:02:41]} Be6 {[%emt 0:05:11]} 11. Bc2 {[%emt 0:01:21]} d5 12. exd5 {[%emt 0:03:51]} Bxd5 {[%emt 0:05:58]} 13. a4 $146 {[%emt 0:05:17]} ({Vorgänger:} 13. b4 Bf8 14. Bb2 Qd7 15. Nf1 Rad8 16. Ng3 g6 17. a4 b5 18. Nd2 {1-0 (53) Hou,Y (2663)-Fressinet,L (2687) Almaty 2016}) 13... a5 {[%emt 0:06:33]} 14. Qe2 {[%emt 0:10:39]} Qd7 {[%emt 0:04:39]} 15. Rd1 {[%emt 0:03:40]} Rad8 {[%emt 0:02:51]} 16. Ne4 {[%emt 0:04:04]} Bxe4 {[%emt 0:02:12]} (16... Be7 $15) 17. dxe4 {[%emt 0:00:39]} Qe6 {[%emt 0:02:32]} 18. Bd2 {[%emt 0:03:19]} Rd7 {[%emt 0:05:39]} 19. Qb5 {[%emt 0:07:57]} Bb6 {[%emt 0:02:27]} 20. Bb3 {[%emt 0:01:35]} Qe7 {[%emt 0:00:56]} 21. Qe2 {[%emt 0:00:49]} Red8 {[%emt 0:01:39]} 22. Re1 {[%emt 0:02:21]} Nh5 {[%emt 0:05:48]} 23. Bd5 {[%emt 0:14:52]} Nb8 {[%emt 0:04:01]} 24. Be3 {[%emt 0:05:09]} ({Avoid the trap} 24. Bxb7 $2 c6 $19) ({White should play} 24. Bc1 $11) 24... Bxe3 {[%emt 0:01:21]} 25. Qxe3 {[%emt 0:00:37]} Nf4 $1 {[%emt 0:01:42]} 26. Bc4 {[%emt 0:00:54]} ({Wrong is} 26. Bxb7 $2 Rd3 $19) 26... Rd3 {[%emt 0:07:01]} (26... b6 $15 27. g3 {[#]} Rd3 $1 {[%mdl 512]} 28. Bxd3 Rxd3 29. gxf4 Rxe3 30. fxe3 Na6) 27. Bxd3 {[%emt 0:03:36]} Rxd3 {[%emt 0:00:07]} 28. Qc1 $2 {[%emt 0:02:04] [#]} (28. Qa7 $11 {and White stays safe.} Rxf3 29. Qxb8+ Kh7 30. Qc8 (30. Qxb7 {leads to mate.} Qg5 31. g4 Qh4 32. Qb6 cxb6 33. Kh2 Qxh3+ 34. Kg1 Qg2#)) 28... Rxf3 $1 {[%emt 0:00:48]} 29. Qd1 $19 {[%emt 0:01:38]} Rd3 {[%emt 0:03:02]} 1/2-1/2

[Event "FIDE WCCC U10 2018"]
[Site "Santiago de Compostela"]
[Date "2018.11.07"]
[Round "3"]
[White "Volkov, Maksim"]
[Black "Pashikyan, Rudolf"]
[Result "1-0"]
[ECO "D00"]
[WhiteElo "1971"]
[BlackElo "1672"]
[Annotator "NA RC"]
[PlyCount "61"]
[EventDate "2018.11.04"]
[EventType "swiss"]
[EventCountry "ESP"]
[SourceTitle "playchess.com"]
[Source "ChessBase"]
[SourceQuality "1"]
[TimeControl "40/5400+30:1800+30"]

{[%evp 8,61,91,91,106,93,112,117,120,121,152,137,137,155,140,137,200,186,229,175,181,161,179,148,155,126,115,100,208,156,257,268,582,416,682,341,367,336,643,191,188,200,204,202,281,206,294,294,339,374,795,787,29990,2033,2068,29979]} 1. d4 {[%emt 0:00:00]} d5 {[%emt 0:00:00]} 2. Bf4 {[%emt 0:00:09]} c6 {[%emt 0:00:00]} 3. e3 {[%emt 0:00:18]} Bf5 {[%emt 0:00:25]} 4. c4 {[%emt 0:00:40] D00: Damenbauernspiele} e5 {[%emt 0:11:23]} (4... e6 $11) 5. Bxe5 {[%emt 0:00:09]} Bxb1 {[%emt 0:00:07]} 6. Qxb1 {[%emt 0:00:11]} Qa5+ {[%emt 0:01:36] [#]} 7. Kd1 $1 {[%emt 0:04:07]} Nd7 {[%emt 0:04:10]} 8. Bg3 {[%emt 0:01:35]} dxc4 $146 {[%emt 0:03:14]} ({Vorgänger:} 8... c5 9. Nf3 Ngf6 10. a3 cxd4 11. exd4 Be7 {1-0 (39) Berkes,F (2645)-Lupulescu,C (2594) Dresden 2008}) 9. Bxc4 {[%emt 0:02:51]} Ngf6 {[%emt 0:00:24]} 10. Nf3 {[%emt 0:01:39]} Be7 {[%emt 0:02:26]} 11. Ke2 {[%emt 0:03:50]} b5 {[%emt 0:02:17]} 12. Bd3 {[%emt 0:01:34]} b4 {[%emt 0:07:50]} 13. Ne5 {[%emt 0:05:14]} Nxe5 {[%emt 0:03:01]} 14. Bxe5 {[%emt 0:02:12]} c5 {[%emt 0:01:40]} 15. Rc1 {[%emt 0:04:34]} cxd4 {[%emt 0:00:49]} 16. exd4 {[%emt 0:02:42]} O-O {[%emt 0:05:06]} 17. Kf1 {[%emt 0:06:14]} h6 {[%emt 0:12:04]} (17... Rac8 $16 {was necessary.} 18. b3 g6 19. Rxc8 Rxc8) 18. Qc2 {[%emt 0:04:40]} Nd5 {[%emt 0:04:44]} (18... Qd8 $16 {was necessary.} 19. Qe2 Rc8 20. Rxc8 Qxc8) 19. Qe2 {[%emt 0:05:25]} f6 $2 {[%emt 0:07:30]} (19... Qb6 {is a better chance.} 20. Qe4 Qg6 21. Qxg6 fxg6 22. Bxg6 Bg5) 20. Bg3 {[%emt 0:01:06]} f5 {[%emt 0:01:51]} (20... Kh8 $142 21. Qe6 f5) 21. Be5 {[%emt 0:02:17]} Rae8 {[%emt 0:01:49]} 22. Bb5 {[%emt 0:02:07]} Rd8 $2 {[%emt 0:01:50]} (22... Rc8 23. Rxc8 Rxc8) 23. Bc4 $2 {[%emt 0:01:19]} (23. Rc6) 23... Kh7 {[%emt 0:02:35]} 24. Re1 {[%emt 0:06:13]} Bf6 {[%emt 0:02:02]} 25. Qf3 {[%emt 0:02:05]} Bg5 {[%emt 0:03:55]} (25... Qb6 $142 26. Bxd5 (26. Qxf5+ g6 $18) 26... Qb5+ 27. Kg1 Qxd5 28. Qxf5+ Kg8) 26. Rad1 {[%emt 0:02:40]} Kh8 {[%emt 0:02:43]} (26... Qa4 {keeps fighting.} 27. g3 (27. Bxd5 Qb5+ 28. Re2 Qxd5 $16) 27... Qd7) 27. Kg1 {[%emt 0:01:53]} Kh7 {[%emt 0:01:20]} 28. g3 {[%emt 0:00:47]} f4 $2 {[%emt 0:00:26]} (28... Kh8 29. Bd3 Qb6) 29. Qe4+ {[%emt 0:03:46]} Kh8 {[%emt 0:00:11]} 30. Qg6 {[%emt 0:01:57]} (30. Bd3 $142 Rf5 31. Qxf5 Nf6 32. Qg6 Qc7 33. Bxc7 Rf8 34. Re7 Rg8 35. Be5 fxg3 36. Bxf6 gxf2+ 37. Kf1 gxf6 38. Qh7#) 30... Rd7 {[%emt 0:01:12]} 31. Bd3 {[%emt 0:01:48]} 1-0

[Event "FIDE WCCC U10 2018"]
[Site "Santiago de Compostela"]
[Date "2018.11.07"]
[Round "3"]
[White "Zhao, Erick"]
[Black "Li, Shanglin"]
[Result "1/2-1/2"]
[ECO "B21"]
[WhiteElo "1957"]
[BlackElo "1659"]
[Annotator "NA RC"]
[PlyCount "114"]
[EventDate "2018.11.04"]
[EventType "swiss"]
[EventCountry "ESP"]
[SourceTitle "playchess.com"]
[Source "ChessBase"]
[SourceQuality "1"]
[TimeControl "40/5400+30:1800+30"]

{[%evp 8,114,65,32767,47,29,32767,16,25,32767,17,13,32767,48,42,52,50,46,56,49,73,72,86,109,122,51,321,32,15,0,122,120,140,123,132,74,86,37,93,66,70,32,65,52,50,56,63,34,80,46,46,43,62,84,69,64,96,75,79,76,101,87,94,29,15,21,25,0,32767,21,20,0,32767,32767,0,0,48,18,22,32767,16,32767,32767,0,0,0,-4,-11,0,0,0,32767,0,0,0,0,0,0,0,0,0,0,0,0,0,0,0,0,0]} 1. e4 {[%emt 0:00:00]} c5 {[%emt 0:00:00]} 2. d4 {[%emt 0:00:02]} cxd4 {[%emt 0:00:00]} 3. c3 {[%emt 0:00:41]} d3 {[%emt 0:00:00]} 4. Bxd3 {[%emt 0:00:25]} Nc6 {[%emt 0:00:00]} 5. Nf3 {[%emt 0:01:08]} d6 {[%emt 0:00:15]} 6. c4 {[%emt 0:00:33] B21: Sicilian: 2 f4 and Morra Gambit} (6. O-O Nf6 7. h3 g6 8. Qe2 Bg7 9. Rd1 Nd7 10. Be3 O-O 11. Nbd2 b6 12. Nd4 Nce5 13. Ba6 Nc5 14. Bxc8 Qxc8 15. N4f3 Nxf3+ 16. Qxf3 {½-½ (37) Petrov,N (2490)-Bernadskiy,V (2549) Riga 2016}) 6... g6 {[%emt 0:00:17]} 7. O-O {[%emt 0:00:26]} Bg7 {[%emt 0:00:11]} 8. h3 {[%emt 0:01:06]} Nf6 {[%emt 0:00:27]} 9. Nc3 {[%emt 0:00:36]} O-O {[%emt 0:00:10]} 10. Be3 {[%emt 0:00:40] LiveBook: 63 Partien} Nd7 {[%emt 0:04:28]} 11. Rc1 {[%emt 0:01:17]} Nc5 {[%emt 0:05:46]} 12. Bb1 {[%emt 0:02:12]} Be6 {[%emt 0:02:50]} 13. Qe2 {[%emt 0:02:22]} Qb6 $146 {[%emt 0:09:44]} ({Predecessor:} 13... Rc8 14. Nd5 {½-½ (45) Boucquet,E (2176)-Pescatore,L (2352) Amantea 2018}) 14. b3 {[%emt 0:06:21]} Rac8 {[%emt 0:04:53]} 15. Rfd1 {[%emt 0:02:39]} a6 {[%emt 0:03:06]} 16. Qd2 {[%emt 0:12:27]} ({White should try} 16. Nd5 $16 Bxd5 17. exd5 (17. cxd5 Ne5 $16)) 16... Rfd8 $2 $11 {[%emt 0:02:40] bleibt in der Remisbreite.} (16... Qa5 $14) 17. Na4 $2 {[%emt 0:02:33]} (17. Nd5 $18 Bxd5 18. cxd5) 17... Qc7 {[%emt 0:03:47]} 18. Nc3 {[%emt 0:02:23]} Qb8 {[%emt 0:00:41]} 19. Nd5 {[%emt 0:04:16]} Bxd5 {[%emt 0:07:49]} 20. exd5 {[%emt 0:00:56]} Ne5 {[%emt 0:01:21] [#]} 21. Nxe5 {[%emt 0:00:21]} ({White should try} 21. Nd4 $1) 21... Bxe5 {[%emt 0:00:06]} 22. b4 {[%emt 0:02:58]} Nd7 {[%emt 0:00:01]} (22... Na4 $14) 23. Be4 {[%emt 0:01:15]} Bg7 {[%emt 0:02:27]} 24. f4 {[%emt 0:02:03]} b6 {[%emt 0:02:00]} 25. Rc2 {[%emt 0:04:19]} Rc7 {[%emt 0:00:52]} 26. Rdc1 {[%emt 0:00:21]} Rdc8 {[%emt 0:00:29]} 27. Qf2 {[%emt 0:00:41]} Rb7 {[%emt 0:03:31]} 28. Bf3 {[%emt 0:03:56]} a5 {[%emt 0:05:11]} 29. a3 {[%emt 0:06:50]} Qa7 {[%emt 0:01:00]} 30. Bg4 {[%emt 0:03:11]} axb4 {[%emt 0:02:07]} 31. axb4 {[%emt 0:03:35]} f5 {[%emt 0:04:39]} 32. Ra2 {[%emt 0:01:20]} Qb8 {[%emt 0:00:30]} 33. Bf3 {[%emt 0:01:35]} Rbc7 {[%emt 0:00:27]} 34. Rac2 {[%emt 0:02:02]} Qa7 {[%emt 0:00:38]} 35. Bd4 {[%emt 0:02:52]} (35. Qd2 $16) 35... Qa3 {[%emt 0:02:02]} 36. Bxg7 $1 {[%emt 0:03:48]} ({Much weaker is} 36. Bxb6 Nxb6 37. Qxb6 Qb3 $15) 36... Kxg7 {[%emt 0:00:06]} 37. Qd4+ {[%emt 0:00:19]} Kg8 {[%emt 0:00:28]} 38. Qd2 {[%emt 0:05:01]} Nf6 {[%emt 0:04:27]} 39. Ra2 {[%emt 0:03:09]} (39. Kh2 $5 {[%cal Rc2a2]} Ra8 40. Rb2 $11) 39... Qb3 {[%emt 0:00:37]} 40. Rb2 {[%emt 0:00:00]} Qa4 {[%emt 0:00:00]} 41. Ra2 {[%emt 0:01:25]} Qd7 {[%emt 0:00:39]} 42. Qd4 {[%emt 0:00:42]} Ra7 {[%emt 0:03:49]} 43. Rca1 {[%emt 0:06:03]} Rca8 {[%emt 0:03:42]} 44. Rxa7 {[%emt 0:00:37]} Rxa7 {[%emt 0:00:07]} 45. Re1 {[%emt 0:00:33]} Rb7 {[%emt 0:03:09]} 46. c5 {[%emt 0:03:25]} bxc5 {[%emt 0:00:30]} 47. bxc5 {[%emt 0:00:05]} dxc5 {[%emt 0:00:11]} 48. Qxc5 {[%emt 0:00:09]} Rc7 {[%emt 0:00:26]} 49. Qd4 {[%emt 0:01:04]} Rc6 {[%emt 0:03:47]} 50. Kh2 {[%emt 0:01:18]} Rd6 {[%emt 0:00:29]} 51. Rd1 {[%emt 0:01:29]} Kf7 {[%emt 0:01:54]} 52. Qc4 {[%emt 0:01:28]} Kg7 {[%emt 0:02:58]} 53. Re1 {[%emt 0:01:03]} Nxd5 {[%emt 0:04:16]} 54. Bxd5 {[%emt 0:00:06]} Rxd5 {[%emt 0:00:01] [#]} 55. Rxe7+ $1 {[%emt 0:00:11]} Qxe7 {[%emt 0:00:01]} 56. Qxd5 {[%emt 0:00:09]} Qe3 {[%emt 0:00:12]} 57. Qd7+ {[%emt 0:00:29]} Kg8 $11 1/2-1/2